Cogmind - Beta 16 @@@ ROGUE MODE // 2025.10.25 @ 12:56:51 Player: ExAliquo Result: Destroyed by D-53 Grenadier with Mini Grenade Launcher Performance ------------- Evolutions (0) 0 Regions Visited (2) 400 Robots Destroyed (9) 45 Value Destroyed (74) 74 Prototype IDs (2) 40 Alien Tech Used (0) 0 Bonus (0) 0 TOTAL SCORE: 559 Bonus ------- None Cogmind --------- Core Integrity 0/250 Matter 300/300 Energy 69/100 System Corruption 0% Temperature Cool (0) Movement Core (200) Ox3 Location -10/Mines Parts ------- > --- POWER (1) -------- (None) > --- PROPULSION (2) --- Aluminum Leg > --- UTILITY (2) ------ Medium Storage Unit > --- WEAPON (2) ------- (None) > --- INVENTORY (10) --- Ion Engine Compact Wheel High-capacity Storage Unit Medium Matter Pod (100) Improved Terrain Scanner Seismic Detector Beam Cannon Light Assault Rifle Peak State ------------ > --- POWER ------------ Light Ion Engine > --- PROPULSION ------- Aluminum Leg Aluminum Leg > --- UTILITY ---------- Small Storage Unit Seismic Detector > --- WEAPON ----------- EM Pulse Gun Medium Laser > --- INVENTORY -------- Ion Engine Light Treads Light Treads Wheel Compact Wheel Medium Matter Pod Improved Terrain Scanner Light Assault Rifle [Rating: 8] Favorites ----------- Power Light Ion Engine Engine Light Ion Engine Propulsion Aluminum Leg Treads Light Treads Leg Aluminum Leg Wheel Wheel Utility Seismic Detector Device Seismic Detector Storage Small Storage Unit Weapon Medium Laser Energy Gun Medium Laser Build | -11 -10 -10 ------- Run | Yrd Mat Min Slots Evolved . | . . . Power . | . . . Propulsion . | . . . Utility . | . . . Weapon . | . . . Parts Attached 7 | 2 1 4 Power . | . . . Engine . | . . . Core . | . . . Reactor . | . . . Propulsion 4 | . . 4 Treads 2 | . . 2 Leg 1 | . . 1 Wheel 1 | . . 1 Hover . | . . . Flight . | . . . Utility 2 | 1 1 . Device 1 | 1 . . Storage 1 | . 1 . Processor . | . . . Hackware . | . . . Protection . | . . . Artifact . | . . . Weapon 1 | 1 . . Energy Gun 1 | 1 . . Energy Cannon . | . . . Ballistic Gun . | . . . Ballistic Cannon . | . . . Launcher . | . . . Special Weapon . | . . . Impact Weapon . | . . . Slashing Weapon . | . . . Piercing Weapon . | . . . Special Melee Weapon . | . . . Unidentified Prototypes . | . . . Parts Lost 7 | . . 7 Power 1 | . . 1 Propulsion 4 | . . 4 Utility . | . . . Weapon 2 | . . 2 Highest Loss Streak 7 | . . 7 To Critical Strikes . | . . . Average Backups 8 | 6 7 10 Power 1 | 1 1 1 Propulsion 3 | 4 4 3 Utility 1 | . 1 3 Weapon 1 | 1 1 2 Tool/Special . | . . . Unused Backups 7 | . 3 4 Power . | . . . Propulsion . | . . . Utility 5 | . 3 2 Weapon 2 | . . 2 Tool/Special . | . . . Average Slot Usage (%) 97 | . 100 91 Engine 13 | . 14 11 Treads 1 | . . 3 Leg 26 | . 28 23 Device 13 | . 14 11 Storage 14 | . 14 14 Energy Gun 26 | . 28 24 Peak Build Rating 8 | 7 8 8 Average Rating 7 | 6 7 7 On Entrance 7 | 6 7 8 Avg Prop Armor Cover (%) . | . . . Naked Turns . | . . . Heaviest Build 18 | 13 18 18 Greatest Support 40 | 20 20 40 Greatest Overweight (x) . | . . . Average Overweight (x) . | . . . Largest Inventory Capacity 10 | 8 10 10 Average Capacity 8 | 8 8 10 Most Carried 10 | 7 10 10 Average Carried 8 | 6 7 9 Final Capacity 10 | 8 10 10 Final Carried 10 | 7 10 8 Class Distribution -------------------- 100% | Mutant Dominant Class ---------------- Mutant | -10/Materials Mutant | -10/Mines Resources | -11 -10 -10 ----------- Run | Yrd Mat Min Matter Collected 355 | 220 76 59 Remotely . | . . . Salvage Created 298 | 126 106 66 Parts 18 | 5 8 5 Haulers Intercepted 1 | . 1 . Recyclers Shooed 1 | . 1 . Parts Field Recycled . | . . . Retrieved Matter . | . . . Parts Self-Destructed . | . . . Prevented . | . . . Parts Restored . | . . . Kills | -11 -10 -10 ------- Run | Yrd Mat Min Combat Hostiles Destroyed 4 | . 3 1 Guns 1 | . 1 . AOE 3 | . 2 1 Classes Destroyed 6 | 2 2 2 Builder 1 | . . 1 Tunneler 3 | 1 . 2 Hauler 1 | . 1 . Recycler 1 | 1 . . Swarmer 3 | . 3 . Assembled 1 | . . 1 Best Kill Streak 3 | 2 3 2 Combat Bots Only 3 | . 3 1 Max Kills in Single Turn 2 | 1 2 2 Gunslinging . | . . . Exploded 2 | . 2 1 Melee . | . . . Uniques/NPCs Destroyed . | . . . Combat | -11 -10 -10 -------- Run | Yrd Mat Min Hostile Shots Fired 66 | . 25 41 Missed 22 | . 10 12 Hits 44 | . 15 29 Projectile 44 | . 15 29 AOE 14 | . . 14 Critical Strikes 1 | . . 1 Damage Taken 1011 | . 108 903 Core 257 | . 21 236 Absorbed by Shields . | . . . Core Remaining (%) 100 | 100 . . Volleys Fired 26 | 9 9 8 Largest 2 | 2 2 2 Hottest 90 | 90 90 90 Shots Fired 47 | 18 18 11 Gun 47 | 18 18 11 Cannon . | . . . Launcher . | . . . Special . | . . . Kinetic . | . . . Thermal 26 | 9 9 8 Explosive . | . . . Electromagnetic 21 | 9 9 3 Robot Hit Streak 7 | 4 7 4 Robot Miss Streak 3 | 3 3 1 Penetration Max . | . . . Secondary Targets . | . . . Shots Hit Robots 28 | 10 11 7 Core Hits 10 | 3 4 3 Critical Kills . | . . . Critical Parts Destroyed . | . . . Critical Strikes 1 | 1 . . Burn 1 | 1 . . Melee Attacks . | . . . Impact . | . . . Slashing . | . . . Piercing . | . . . Sneak Attacks . | . . . Combat Hostiles . | . . . Follow-up Attacks . | . . . Damage Inflicted 455 | 156 192 107 Guns 357 | 131 119 107 Cannons . | . . . Explosions 98 | 25 73 . Melee . | . . . Ramming . | . . . Kinetic . | . . . Thermal 261 | 50 134 77 Explosive . | . . . Electromagnetic 194 | 106 58 30 Impact . | . . . Slashing . | . . . Piercing . | . . . Highest Corruption . | . . . Average Corruption . | . . . Corruption Purged . | . . . Corruption Blocked . | . . . Overload Shots . | . . . Overflow Damage 17 | . 17 . Projectiles . | . . . Explosions 17 | . 17 . Melee . | . . . Knockbacks . | . . . Impact . | . . . Kinetic . | . . . Secondary . | . . . Self-Inflicted Damage . | . . . Shots . | . . . Rammed . | . . . Targets Rammed . | . . . Kicked . | . . . Crushed . | . . . Highest Temperature 270 | 270 180 53 Average Temperature 91 | 137 68 22 Received Heat Transfer 20 | . . 20 Effects 1 | 1 . . Energy Bleed 1 | 1 . . Siege Activations . | . . . Martial Activations . | . . . Shielding Activations . | . . . Robots Disrupted . | . . . Combat Hostiles . | . . . Robots Corrupted . | . . . Combat Hostiles . | . . . Parts Fried . | . . . Impact Corruptions . | . . . Robots Melted . | . . . Combat Hostiles . | . . . Parts Melted . | . . . Heat Transferred 655 | 198 235 222 Parts Sabotaged . | . . . Parts Stolen . | . . . Parts Stripped . | . . . Power Chain Reactions 2 | 1 1 . Alert | -11 -10 -10 ------- Run | Yrd Mat Min Maximum Alert Level . | . . . Low Security (%) 100 | 100 100 100 Level 1 . | . . . Level 2 . | . . . Level 3 . | . . . Level 4 . | . . . Level 5 . | . . . High Security . | . . . Max Security . | . . . Peak Influence 123 | 5 123 10 Initial 3 | . . 3 Average 31 | 1 51 1 Influence Increases 165 | 10 140 15 Destroy 0b10 Robot/C 60 | . 60 . Destroy 0b10 Robot/NC 30 | 10 5 15 Destroy Leader 12 | . 12 . Disable Machine 15 | . 15 . Destroy Structure 3 | . 3 . Lose Combat Pursuer 45 | . 45 . Influence Decreases 165 | 10 130 25 Entered New Map 7 | . . 7 Time Decay 158 | 10 130 18 Squads Dispatched 3 | . 3 . Investigation 3 | . 3 . Extermination . | . . . Reinforcement . | . . . Assault . | . . . Garrison . | . . . Intercept . | . . . Searches Triggered . | . . . Construction Impeded . | . . . Haulers Reinforced . | . . . Active Scanning Responses . | . . . Cargo Convoy Interrupts . | . . . Stealth | -11 -10 -10 --------- Run | Yrd Mat Min Distress Signals 3 | . 3 . Communications Jammed . | . . . Distress Signals . | . . . Times Spotted 21 | . 7 14 Peak Tracking Total 10 | . 8 10 Tactical Retreats 2 | . 1 1 Traps | -11 -10 -10 ------- Run | Yrd Mat Min Traps Triggered 1 | . 1 . Indirectly . | . . . Trap Hack Attempts . | . . . Triggered . | . . . Disarmed . | . . . Reprogrammed . | . . . Reused . | . . . Traps Extracted . | . . . Installed . | . . . Triggered . | . . . Machines | -11 -10 -10 ---------- Run | Yrd Mat Min Machines Disabled 1 | . 1 . Max in Single Turn 1 | . 1 . Machines Repaired . | . . . Machines Dismantled . | . . . Machines Sabotaged . | . . . Overloaded Fab Kills . | . . . Hacking | -11 -10 -10 --------- Run | Yrd Mat Min Machines Accessed 4 | . 4 . Terminals 3 | . 3 . Fabricators . | . . . Repair Stations 1 | . 1 . Recycling Units . | . . . Scanalyzers . | . . . Garrison Access . | . . . Total Hacks 11 | . 11 . Successful 3 | . 3 . Failed 8 | . 8 . Catastrophic 2 | . 2 . Database Lockouts . | . . . Manual 8 | . 8 . Terminals 10 | . 10 . Fabricators . | . . . Repair Stations 1 | . 1 . Recycling Units . | . . . Scanalyzers . | . . . Garrison Access . | . . . Terminal Hacks 2 | . 2 . Prototype ID Bank 1 | . 1 . Recall Investigation 1 | . 1 . Fabricator Hacks . | . . . Repair Station Hacks . | . . . Recycling Unit Hacks . | . . . Scanalyzer . | . . . Garrison Access Hacks . | . . . Unauthorized Hacks 1 | . 1 . Terminals . | . . . Fabricators . | . . . Repair Stations 1 | . 1 . Mechanics 1 | . 1 . Recycling Units . | . . . Scanalyzers . | . . . Garrison Access . | . . . Data Cores Recovered . | . . . Used . | . . . Hacking Detections 3 | . 3 . Full Trace Events 2 | . 2 . Feedback Events . | . . . Feedback Blocked . | . . . Robot Schematics Acquired . | . . . Robots Built . | . . . Authchips . | . . . Time . | . . . Total Robot Build Rating . | . . . Part Schematics Acquired . | . . . Parts Built . | . . . Authchips . | . . . Time . | . . . Total Part Build Rating . | . . . Part Studies Acquired . | . . . Parts Repaired . | . . . Time . | . . . Parts Recycled . | . . . Recycled Matter . | . . . Retrieved Matter . | . . . Retrieved Components . | . . . Parts Scanalyzed . | . . . Part Schematics Acquired . | . . . Parts Damaged . | . . . Bothacking | -11 -10 -10 ------------ Run | Yrd Mat Min Used RIF Installer . | . . . Robots Hacked . | . . . Non-combat . | . . . Combat . | . . . Robot Hacks Applied . | . . . Relay Couplers Released . | . . . Fabnet Peak Effective % . | . . . Robots Rewired . | . . . Allies Hacked . | . . . Hacks Repelled . | . . . Allies | -11 -10 -10 -------- Run | Yrd Mat Min Total Allies 2 | . . 2 Largest Group 2 | . . 2 Highest-Rated Group 41 | . . 41 Highest-Rated Ally 31 | . . 31 Total Orders . | . . . Ally Attacks 5 | . . 5 Total Damage 65 | . . 65 Kills . | . . . Allies Corrupted . | . . . Allies Melted . | . . . Intel | -11 -10 -10 ------- Run | Yrd Mat Min Active Infowar (turns) 490 | 30 340 120 Seismic 490 | 30 340 120 Robot Analysis Total . | . . . Derelict Logs Recovered . | . . . Drone Launches . | . . . Drone Recoveries . | . . . Exploration | -11 -10 -10 ------------- Run | Yrd Mat Min Turns Passed 559 | 72 340 147 Spaces Moved 379 | 33 252 94 Core . | . . . Treads 7 | . . 7 Legs 370 | 33 252 85 Wheels 2 | . . 2 Hover . | . . . Flight . | . . . Fastest Speed 80 | 120 120 80 Average Speed 120 | 120 120 122 Slowest Speed 160 | 120 120 160 Overloaded Moves . | . . . Propulsion Burnouts . | . . . Robots Hopped . | . . . Potential Cave-ins . | . . . Cave-ins Triggered . | . . . Exploration Rate (%) 22 | 4 39 25 Regions Visited 2 Branch Regions 1 Pre-discovered Areas . | . . . Known Exits Taken . | . . . Unknown Exits Taken 2 | 1 1 . Scrap Searched 1 | . . 1 Spaces Dug . | . . . Terrain Destroyed 5 | 3 2 . Melee . | . . . Projectile . | . . . AOE 5 | 3 2 . Terrain Rammed . | . . . Walls Destroyed . | . . . Machines Disabled . | . . . Actions | -11 -10 -10 --------- Run | Yrd Mat Min Total 433 | 46 272 115 Wait 15 | 2 5 8 Move 377 | 32 251 94 Hop . | . . . Pick Up 5 | 1 4 . Fast Attach 1 | 1 . . Attach 3 | . . 3 Detach 1 | . . 1 Swap 3 | 1 1 1 Drop 2 | . 2 . Fire 26 | 9 9 8 Melee . | . . . Ram . | . . . Kick . | . . . Crush . | . . . Escape Stasis . | . . . Rewire . | . . . Trap . | . . . Miscellaneous . | . . . Route ------- -11/Scrapyard -10/Materials -10/Mines (discovered 1 exit: [*Mat]) History --------- Turn | Location | Event 3 | -11/Scrapyard | Discovered new exit (range 3) 73 | -11/Scrapyard | Entered Materials 329 | -10/Materials | Build established: Mutant 330 | -10/Materials | Discovered new exit (range 8) 413 | -10/Materials | Entered Mines 434 | -10/Mines | Discovered new exit (range 8) 497 | -10/Mines | Assembled infested the area 535 | -10/Mines | Core integrity fell below 50% 543 | -10/Mines | Core integrity fell below 20% 560 | -10/Mines | Destroyed by D-53 Grenadier with Mini Grenade Launcher Last Messages --------------- 00532_ as-68923 destroyed. 00532_ as-58147 destroyed. 00532_ Plasma Injector explodes. 00532_ EM Pulse Gun destroyed. 00532_ Plasma Injector explodes. 00532_ Lgt. Ion Engine destroyed. 00532_ as-62921 destroyed. 00532_ as-69399 destroyed. 00532_ as-56044 destroyed. 00532_ Aluminum Leg destroyed. 00538_ as-28836 destroyed. 00547_ A pair of derelicts emerge from the shadows: "We're, um, lost. You wouldn't happen to know the way out of here, would you?" 00550_ Lgt. Treads destroyed. 00554_ Med. Laser destroyed. 00556_ The unstable cave ceiling collapses. 00556_ Lgt. Treads destroyed. 00558_ as-24427 destroyed. 00559_ Acquired 25 matter. 00560_ Wheel destroyed. Map ----- +----------------------------------------------------+ | | | | | | | | | | | | | | | | | ?????????????????????????????????????????????????? | | ?????????????????????????????????????????????????? | | ?????????????????????????????????????????????????? | | #????????????????????????????????????????????????? | | #????????????????????????????????????????????????? | | #????????????????????????????????????????????????? | | #??#####?????????????????????????????????????????? | | #?## ##??????????????????############??????????? | | #?# #######????????????# ########???? | | ???# #?#######????# #???? | | ??## ##### #?# ##???# #???? | | ?## ##???# #?# #???# ### #???? | | ## ##????# #??# #??## a #???? ?? | | # ##?????# #### #???# #?????? | | ##??????# r ##### a #???????? | | < #???????#### k #????????? | | ##??????????# z k #????????? | | #???????????## #### @% #????????? | | #????????????# ###?# d ##????????? | | ####????????????# #???## ;##?????????? | | ????????????????# #????# ####??????????? | | ????????????????# #???# # #?????????????? | | ????????????????# #???# ## ???????????? | | ????????????????# #??# ### ? ?????????? | | ????????????????# ??# g ##?## ?? ????????? | | ???????????????? ?# ????# ?? ????????? | | ????????????????### ????# ?????????????? | | ?????????????????# ????## ????????????? | | ????????????????? #??????## ????????????? | | ???????????????? #?????????# ???????????? | | ?????????????????? r ???????????# ????????????? | | ????????????????????? ????????????# ?????????????? | | ?????????????????????????????????????????????????? | | ?????????????????????????????????????????????????? | | ?????????????????????????????????????????????????? | | ?????????????????????????????????????????????????? | | ?????????????????????????????????????????????????? | | ?????????????????????????????????????????????????? | | ?????????????????????????????????????????????????? | | ?????????????????????????????????????????????????? | | ?????????????????????????????????????????????????? | | ?????????????????????????????????????????????????? | +----------------------------------------------------+ Best States ------------- Heat Dissipation 25 Energy Generation 10 Energy Capacity 125 Matter Stores 300 Matter Capacity 300 Sight Range 16 Terrain Scan Density 10 Evasion (%) 55 Recoil Reduction 2 Item Schematics ----------------- None Robot Schematics ------------------ None Fabricated ------------ Nothing Repaired ---------- Nothing Studied --------- None Alien Tech Used ----------------- None Achievements -------------- None Challenges ------------ None Game ------ Seed GravjetTacticalPenetrator Manual? 0 Play Time 00:07:58 Cumulative 48.4 hours Start 2025.10.25 @ 12:46:14 End 2025.10.25 @ 12:56:51 Sessions 1 Manual Loads 0 Difficulty Rogue Special Mode None Game No. 91 Rogue 91 Adventurer 0 Explorer 0 Win Type - Total 0 Types 0/0/0/0/0/0/0/0/0/0 Lore% 41 Gallery% 44 Achievement% 35 Wizard Run 0 Options --------- Layout 0 ASCII 0 Keyboard 0 Movement Numpad Keybinds 0 Fullscreen 1 Font 18/SmallcapsGlow Map View 76x50 Zoom Use 0% Tactical HUD 1 Map Filters NONE Filters NONE Steam 1 RUN: b84c1ac3-13ae-4404-b01c-6b72ff70eed7